fUSD/lending_fUSD_20240708
["ID","MTS","AMOUNT","RATE_DAILY","PERIOD"]
[331532981,1720452646367,-312.35950601,0.00025,2]
[331532982,1720452646384,-2475.51637979,0.00025,2]
[331532983,1720452646415,-1020.37315764,0.00025,2]
[331532984,1720452646424,-155.0,0.00025,2]
[331532985,1720452646433,-433.01842109,0.00025,2]
[331532986,1720452646442,-626.87778826,0.00025,2]
[331532987,1720452646451,-1789.10490314,0.00025,2]
[331532988,1720452646460,-155.0,0.00025,2]
[331532989,1720452646470,-1000.0,0.00025205,2]
[331532990,1720452646479,-150.0,0.00025379,2]
[331532991,1720452646488,-1000.0,0.00025668,2]
[331532992,1720452646497,-150.0,0.00025955,2]
[331532993,1720452646506,-150.0,0.00026079,2]
[331532994,1720452646515,-324.48,0.0002637,2]
[331532995,1720452646524,-150.0,0.00026532,2]
[331532996,1720452646533,-155.0,0.00027,2]
[331532997,1720452646542,-521.42979497,0.00027,2]
[331532998,1720452646551,-339.81835002,0.00027,7]
[331532999,1720452646560,-155.0,0.00027,2]
[331533000,1720452646569,-448.43744001,0.00027,2]
[331533001,1720452646578,-550.93345898,0.00027,2]
[331533002,1720452646588,-2609.01130048,0.00027,2]
[331533003,1720452646600,-2990.50036596,0.00027,2]
[331533004,1720452646618,-281.00881241,0.00027,2]
[331533005,1720452646629,-1981.0,0.00027,2]
[331533006,1720452646640,-5674.47173177,0.00027,2]
[331533007,1720452646651,-500.0,0.00027,2]
[331533008,1720452646662,-10625.41575759,0.00027,2]
[331533009,1720452646671,-155.0,0.00027,2]
[331533010,1720452646680,-169.93311326,0.00027,2]
[331533011,1720452646690,-155.0,0.00027,2]
[331533012,1720452646699,-2689.487474,0.00027,2]
[331533013,1720452646708,-150.0,0.00027109,2]
[331533014,1720452646716,-150.0,0.00027686,2]
[331533015,1720452646726,-870.0,0.00027714,2]
[331533016,1720452646735,-400.0,0.0002782,120]
[331533017,1720452646744,-200.0,0.00027958,120]
[331533018,1720452646754,-1000.0,0.00028002,2]
[331533019,1720452646763,-150.0,0.00028263,2]
[331533020,1720452646772,-156.84,0.00028337,2]
[331533021,1720452646781,-150.0,0.00028839,2]
[331533022,1720452646790,-150.0,0.00029416,2]
[331533023,1720452646799,-150.0,0.00029993,2]
[331533024,1720452646808,-500.0,0.00030089,3]
[331533025,1720452646817,-500.0,0.00030098,3]
[331533026,1720452646827,-500.0,0.00030107,3]
[331533027,1720452646836,-500.0,0.00030116,3]
[331533028,1720452646845,-500.0,0.00030124,3]
[331533029,1720452646855,-500.0,0.00030133,3]
[331533030,1720452646864,-500.0,0.00030142,3]
[331533031,1720452646873,-500.0,0.00030151,3]
[331533032,1720452646883,-500.0,0.0003016,3]
[331533033,1720452646892,-500.0,0.00030168,3]
[331533034,1720452646901,-500.0,0.00030177,3]
[331533035,1720452646910,-500.0,0.00030186,3]
[331533036,1720452646919,-500.0,0.00030195,3]
[331533037,1720452646928,-500.0,0.00030204,3]
[331533038,1720452646937,-500.0,0.00030212,3]
[331533039,1720452646947,-500.0,0.00030221,3]
[331533040,1720452646957,-500.0,0.0003023,3]
[331533041,1720452646966,-500.0,0.00030239,3]
[331533042,1720452646975,-500.0,0.00030248,3]
[331533043,1720452646985,-500.0,0.00030256,3]
[331533044,1720452646994,-500.0,0.00030265,3]
[331533045,1720452647004,-500.0,0.00030274,3]
[331533046,1720452647013,-150.0,0.0003057,2]
[331533047,1720452647022,-400.0,0.00030602,120]
[331533048,1720452647032,-220.7558527,0.00030749,2]
[331533049,1720452647041,-150.55133352,0.00030821,7]
[331533050,1720452647050,-152.66371709,0.00031002,7]
[331533051,1720452647060,-151.14628755,0.00031109,7]
[331533052,1720452647070,-150.0,0.00031147,2]
[331533053,1720452647081,-150.0,0.00031723,2]
[331533054,1720452647090,-154.84072058,0.00032053,7]
[331533055,1720452647100,-152.66371709,0.0003215,7]
[331533056,1720452647110,-156.84,0.00032248,2]
[331533057,1720452647119,-150.0,0.000323,2]
[331533058,1720452647128,-152.66371709,0.00032524,7]
[331533059,1720452647137,-150.0,0.00032877,2]
[331533060,1720452647147,-152.66371709,0.00032941,7]
[331533061,1720452647158,-655.256263,0.00033,14]
[331533062,1720452647168,-318.7,0.00033151,120]
[331533063,1720452647178,-400.0,0.00033384,120]
[331533064,1720452647187,-210.01223992,0.0003361,7]
[331533065,1720452647196,-152.66371709,0.00033733,7]
[331533066,1720452647206,-150.55133352,0.00033754,7]
[331533067,1720452647215,-870.0,0.00033785,2]
[331533068,1720452647225,-168.60601459,0.00033894,7]
[331533069,1720452647234,-168.60601459,0.00034093,7]
[331533070,1720452647243,-210.01223992,0.00034376,7]
[331533071,1720452647252,-152.68542365,0.00034436,7]
[331533072,1720452647262,-152.66371709,0.00035359,7]
[331533073,1720452647271,-152.66371709,0.00035694,7]
[331533074,1720452647281,-3506.8707268,0.000358,8]
[331533075,1720452647292,-159.46024298,0.00036032,7]
[331533076,1720452647302,-156.84,0.00036158,2]
[331533077,1720452647312,-210.01223992,0.00036599,7]
[331533078,1720452647322,-160.20995829,0.00036685,2]
[331533079,1720452647332,-1006.4355,0.00036685,120]
[331533080,1720452647342,-7389.9,0.00036685,2]
[331533081,1720452647352,-11786.12256458,0.00036693,120]
[331533082,1720452647365,-13213.87743542,0.00036693,120]
[331533083,1720452647376,-156.62970523,0.00036693,9]
[331533084,1720452647386,-11133.67718209,0.00036763,5]
[331533085,1720452647398,-4660.92624026,0.00036763,5]
[331533086,1720452647409,-725.17493685,0.00036763,5]
[331533087,1720452647418,-13680.12506318,0.00036763,5]
[331533088,1720452647438,-5717.13006542,0.00036763,5]
[331533089,1720452647447,-494.0,0.00036785,30]
[331533090,1720452647456,-150.1,0.00036785,30]
[331533091,1720452647466,-191.0,0.00036785,30]
[331533092,1720452647475,-191.0,0.00036785,30]
[331533093,1720452647484,-191.0,0.00036785,30]
[331533094,1720452647494,-344340.54729727,0.00036785,30]
[331533095,1720452647503,-200.0,0.00036785,30]
[331533096,1720452647512,-200.0,0.00036785,30]
[331533097,1720452647522,-203.708153,0.00036785,30]
[331533098,1720452647531,-138212.3906978,0.00036785,30]
[331533099,1720452647540,-2819.84674947,0.00036793,2]
[331533100,1720452647550,-151.48,0.00036793,5]
[331533101,1720452647559,-700.0,0.000369,13]
[331533102,1720452647568,-152.66371709,0.00037202,7]
[331533103,1720452647577,-828.0,0.00037233,5]
[331533104,1720452647587,-150.55133352,0.00037438,7]
[331533105,1720452647596,-150.55133352,0.00037506,7]
[331533106,1720452647605,-210.01223992,0.00037511,7]
[331533107,1720452647614,-500.0,0.00037973,2]
[331533108,1720452647623,-500.0,0.00037973,2]
[331533109,1720452647633,-500.0,0.00037973,2]
[331533110,1720452647642,-500.0,0.00037973,2]
[331533111,1720452647652,-500.0,0.00037973,2]
[331533112,1720452647661,-500.0,0.00037973,2]
[331533113,1720452647670,-500.0,0.00037973,2]
[331533114,1720452647680,-500.0,0.00037973,2]
[331533115,1720452647690,-500.0,0.00037973,2]
[331533116,1720452647699,-500.0,0.00037973,2]
[331533117,1720452647708,-500.0,0.00037973,2]
[331533118,1720452647717,-500.0,0.00037973,2]
[331533119,1720452647726,-500.0,0.00037973,2]
[331533120,1720452647735,-500.0,0.00037973,2]
[331533121,1720452647745,-152.66371709,0.00038026,7]
[331533122,1720452647754,-155.51654116,0.00038049,7]
[331533123,1720452647763,-168.60601459,0.00038352,7]
[331533124,1720452647773,-150.55133352,0.00039372,7]
[331533125,1720452647782,-152.66371709,0.00039654,7]
[331533126,1720452647791,-210.01223992,0.00039714,7]
[331533127,1720452647801,-870.0,0.00039856,2]
[331533128,1720452647810,-152.66371709,0.00039987,7]
[331533129,1720452647819,-154.53239715,0.00039999,31]
[331533130,1720452647828,-151.0,0.0004,120]
[331533131,1720452647837,-151.0,0.0004,120]
[331533132,1720452647846,-500.0,0.0004,120]
[331533133,1720452647855,-44.21022724,0.00040068,2]
[331533134,1720452647867,-112.62977276,0.00040068,2]
[331533135,1720452647876,-152.66371709,0.00040213,30]
[331533136,1720452647886,-2500.0,0.000403,2]
[331533137,1720452647895,-97.25391268,0.00040315,30]
[331533141,1720452753275,400.0,0.00026386,120]
[331533159,1720453289227,200.0,0.00026156,120]
[331533166,1720453769453,-310.5565095,0.000133,2]
[331533167,1720453769480,-300.0,0.000133,4]
[331533168,1720453780759,-600.0,0.000134,4]
[331533169,1720453780781,-900.0,0.000135,4]
[331533170,1720453795301,-1200.0,0.000136,4]
[331533171,1720453795326,-1500.0,0.000137,5]
[331533172,1720453802185,-300.0,0.000138,5]
[331533173,1720453810894,-18001.08424293,0.0001388,2]
[331533174,1720453810917,-6362.50364349,0.000139,2]
[331533175,1720453810940,-300.0,0.000139,5]
[331533178,1720453831928,-192.80417238,0.0001399,2]
[331533179,1720453831938,-171.8661885,0.0001399,2]
[331533180,1720453832504,-20.93798388,0.0001399,2]
[331533181,1720453832515,-10490.31059699,0.00014,2]
[331533182,1720453832528,-1067.5415454,0.00014,2]
[331533185,1720453832541,-2015.05034501,0.00014,2]
[331533187,1720453832554,-564.36769467,0.00014,2]
[331533190,1720453832567,-11569.84353504,0.00014,2]
[331533191,1720453832580,-408.28683777,0.00014,2]
[331533216,1720453837950,-17055.0,0.00014,2]
[331533224,1720453838004,-498.35828287,0.00014,2]
[331533228,1720453838059,-535.43603324,0.00014,2]
[331533229,1720453838169,-973.45787798,0.00014,2]
[331533230,1720453838182,-1690.69830545,0.00014,2]
[331533231,1720453838194,-938.90308903,0.00014,2]
[331533232,1720453838206,-409.51197384,0.00014,2]
[331533233,1720453838218,-2657.8929292,0.00014,2]
[331533234,1720453838229,-1087.00829466,0.00014,2]
[331533235,1720453838245,-4519.65421666,0.00014,2]
[331533236,1720453838256,-15533.63414008,0.00014,2]
[331533237,1720453838287,-552.62070963,0.00014,2]
[331533238,1720453838336,-2033.01980657,0.00014,2]
[331533239,1720453838392,-41594.34645878,0.00014,2]
[331533246,1720453839980,-41374.91738175,0.00014,2]
[331533247,1720453840377,-39400.85709784,0.00014,2]
[331533248,1720453840390,-2489.39967424,0.00014,2]
[331533249,1720453840402,-98246.85289365,0.00014,2]
[331533250,1720453840414,-392.85540526,0.00014,2]
[331533251,1720453840426,-1176.69046004,0.00014,2]
[331533252,1720453840438,-55308.92641185,0.00014,2]
[331533253,1720453840450,-274.7021428,0.00014,2]
[331533254,1720453840461,-2517.83629671,0.00014,2]
[331533255,1720453840473,-3291.39065368,0.00014,2]
[331533256,1720453840494,-2430.53542353,0.00014,2]
[331533257,1720453840507,-891.51412651,0.00014,2]
[331533258,1720453840519,-3890640.71786067,0.00014,2]
[331533259,1720453840545,-1858.17683157,0.00014,2]
[331533274,1720453843282,-236.18839852,0.000138,2]
[331533275,1720453843292,-40881.36709318,0.00014,2]
[331533283,1720453847205,-9789.77510328,0.00014,2]
[331533284,1720453847216,-1041.17810398,0.00014,2]
[331533285,1720453847228,-560.52287682,0.00014,2]
[331533286,1720453847243,-359.22379032,0.00014,2]
[331533287,1720453847254,-1755.59834437,0.00014,2]
[331533288,1720453847274,-2123.07352372,0.00014,2]
[331533289,1720453847290,-2836.5862804,0.00014,2]
[331533290,1720453847301,-1920.73870148,0.00014,2]
[331533291,1720453847313,-612.67,0.00014,2]
[331533292,1720453847324,-3007.43990326,0.00014,2]
[331533308,1720454239698,264.47,0.00025,60]
[331533310,1720454346941,1223.02873279,0.00012302,2]
[331533311,1720454346998,507.36662497,0.00012302,2]
[331533312,1720454347053,3527.89367738,0.00012302,2]
[331533313,1720454347107,3145.90480431,0.00012302,2]
[331533314,1720454362218,311.60901258,0.00027,120]
[331533315,1720454488542,150.0,0.00027,120]
[331533316,1720454506642,150.0,0.00027,120]
[331533317,1720454508354,150.0,0.00027,120]
[331533318,1720454517296,150.0,0.00027,120]
[331533322,1720454636780,28042.73894807,0.00011199,2]
[331533323,1720454638211,233.41981638,0.00027,120]
[331533324,1720454690485,16316.54369283,0.00011199,2]
[331533328,1720454786088,51048.04500389,0.00011199,2]
[331533329,1720454812528,166.94273342,0.00011199,2]
[331533343,1720455032251,-797.37400748,0.00013128,2]
[331533345,1720455032476,-819.28,0.00013128,2]
[331533347,1720455032491,-3036.41684882,0.00013128,2]
[331533350,1720455032506,-383.27789991,0.00013128,2]
[331533352,1720455032516,-155.0,0.00013128,2]
[331533353,1720455032526,-411.0,0.00013448,2]
[331533354,1720455032536,-530.74745286,0.00013472,2]
[331533355,1720455032546,-300.0,0.00013515,2]
[331533356,1720455032556,-283.2977875,0.00013516,2]
[331533357,1720455032568,-433.81938179,0.00013516,2]
[331533358,1720455032579,-380.03886704,0.00013516,2]
[331533359,1720455032591,-678.23982505,0.00013516,2]
[331533360,1720455032600,-356.93440213,0.00013543,2]
[331533361,1720455032645,-268.41518878,0.00013543,2]
[331533362,1720455032655,-153.89,0.00013677,2]
[331533363,1720455032665,-269.79567347,0.00013849,2]
[331533364,1720455032674,-353.52219708,0.00013889,2]
[331533365,1720455032683,-210.53515986,0.00013899,2]
[331533366,1720455032692,-155.0,0.00013899,2]
[331533367,1720455032702,-155.11912756,0.00013899,2]
[331533368,1720455032711,-11790.4693,0.000139,2]
[331533369,1720455032721,-334.5742,0.000139,2]
[331533370,1720455032730,-165.47054184,0.000139,2]
[331533371,1720455032742,-173.38035424,0.000139,2]
[331533372,1720455032751,-2240.58264311,0.000139,2]
[331533373,1720455032761,-199.30824592,0.000139,2]
[331533374,1720455032771,-5726.25327915,0.000139,2]
[331533375,1720455032781,-6595.38371649,0.000139,2]
[331533376,1720455032790,-157.19667954,0.000139,2]
[331533377,1720455032800,-369.40721233,0.000139,2]
[331533378,1720455032809,-871.49,0.0001399,3]
[331533379,1720455032820,-17661.12080697,0.00014,2]
[331533390,1720455038099,-327.0059048,0.000139,2]
[331533392,1720455038109,-50912.9940952,0.00014,2]
[331533395,1720455038206,-575.9563864,0.00014,2]
[331533396,1720455038272,-43267.69293663,0.00014,2]
[331533397,1720455038314,-2501.34418487,0.00014,2]
[331533398,1720455038369,-4989.50986296,0.00014,2]
[331533399,1720455038423,-2702.22081626,0.00014,2]
[331533522,1720455040166,-58345.18983886,0.00014,2]
[331533523,1720455040178,-333.88195012,0.00014,2]
[331533524,1720455040191,-352.84425152,0.00014,2]
[331533525,1720455040220,-359.52881058,0.00014,2]
[331533526,1720455040276,-11234.33001627,0.00014,2]
[331533527,1720455040290,-21590.6954927,0.00014,2]
[331533528,1720455040360,-142.65289022,0.00014,2]
[331533529,1720455040372,-2641.29791755,0.00014,2]
[331533530,1720455040385,-4943.28,0.00014,2]
[331533531,1720455040441,-11520.5981007,0.00014,2]
[331533533,1720455040503,-239406.37867792,0.00014,2]
[331533545,1720455043179,-728.79434185,0.00014,2]
[331533546,1720455043191,-1013.4946033,0.00014,2]
[331533547,1720455043234,-494.33920324,0.00014,2]
[331533548,1720455043254,-773.84372412,0.00014,2]
[331533549,1720455043265,-26875.5662015,0.00014,2]
[331533550,1720455043279,-1625.7938459,0.00014,2]
[331533551,1720455043341,-40599.11855816,0.00014,2]
[331533552,1720455043353,-337.42228009,0.00014,2]
[331533553,1720455043397,-444.24779552,0.00014,2]
[331533554,1720455043408,-6644.55524363,0.00014,2]
[331533555,1720455043451,-328.39001,0.00014,2]
[331533556,1720455043463,-1528.87061371,0.00014,2]
[331533557,1720455043474,-2491.29718569,0.00014,2]
[331533559,1720455043730,-2904.51020309,0.00014,2]
[331533560,1720455043745,-7290.45079688,0.00014,2]
[331533561,1720455043757,-311.7686698,0.00014,2]
[331533562,1720455043768,-463.3999995,0.00014,2]
[331533683,1720455047731,-1775.39586138,0.00013472,2]
[331533685,1720455047741,-11167.69824779,0.00014,2]
[331533687,1720455047753,-1297.43588202,0.00014,2]
[331533689,1720455047764,-5520.89832431,0.00014,2]
[331533692,1720455047779,-2894.27037674,0.00014,2]
[331533694,1720455047790,-1494.2,0.00014,2]
[331533696,1720455047801,-47950.49785253,0.00014,2]
[331533698,1720455047813,-13296.24095148,0.00014,2]
[331533700,1720455047825,-40751.72918825,0.00014,2]
[331533703,1720455047836,-1501.7462074,0.00014,2]
[331533705,1720455047846,-250.10479714,0.00014,2]
[331533707,1720455047862,-1065.57712791,0.00014,2]
[331533710,1720455047881,-1523.78274965,0.00014,2]
[331533712,1720455047892,-1006.8,0.00014,2]
[331533714,1720455047903,-706.3125,0.00014,2]
[331533717,1720455047914,-907.5,0.00014,2]
[331533719,1720455047924,-8660.44168497,0.00014,2]
[331533772,1720455142728,868.0,0.00012,7]
[331533782,1720455195913,155.0,0.00016969,60]
[331533783,1720455219218,1000.18,0.00025,60]
[331533784,1720455219255,2130.6458857,0.00026,120]
[331533785,1720455219288,941.4675623,0.00025,60]
[331533788,1720455454771,210.37144152,0.00011199,2]
[331533789,1720455460177,304.62275169,0.00011199,2]
[331533790,1720455460622,264.47,0.00025,60]
[331533791,1720455471159,269.66888549,0.00011199,2]
[331533794,1720455495799,454.0,0.00027,120]
[331533799,1720455519124,941.5246699,0.00026,120]
[331533804,1720455750344,155.0,0.00019997,60]
[331533805,1720455777698,648.08,0.00011199,2]
[331533809,1720455825673,158.59716165,0.00011199,2]
[331533810,1720455866354,155.0,0.00019997,60]
[331533811,1720455911852,155.0,0.00024238,60]
[331533814,1720455940695,155.0,0.00011199,4]
[331533816,1720455951856,155.0,0.00024238,60]
[331533850,1720456159433,155.0,0.00019997,60]
[331533895,1720456232391,-158.09,0.00013177,2]
[331533896,1720456232402,-5409.29417662,0.00013736,2]
[331533897,1720456232411,-743.58373109,0.0001386,2]
[331533898,1720456232511,-34.19403891,0.0001386,2]
[331533899,1720456232522,-833.33334,0.0001388,2]
[331533900,1720456232533,-300.0,0.00013897,2]
[331533901,1720456232543,-1619.75066109,0.00013898,2]
[331533902,1720456232555,-1414.36815207,0.00013898,2]
[331533903,1720456232571,-1917.06984916,0.00013898,2]
[331533904,1720456232581,-165.47054182,0.000139,2]
[331533905,1720456232591,-173.38035422,0.000139,2]
[331533906,1720456232600,-1960.50981273,0.000139,2]
[331533907,1720456232609,-215.22944207,0.000139,2]
[331533908,1720456232638,-592.32203314,0.000139,2]
[331533909,1720456232647,-1400.0,0.000139,2]
[331533910,1720456232657,-860.48307461,0.000139,2]
[331533926,1720456238406,-313.999999,0.000139,2]
[331533927,1720456238469,-3979.14487758,0.000139,2]
[331533928,1720456238479,-280.82894392,0.000139,2]
[331533929,1720456238491,-278.81982908,0.000139,2]
[331533930,1720456238500,-86.40073024,0.000139,2]
[331534046,1720456240423,-473.24804276,0.000139,2]
[331534047,1720456240434,-833.33333,0.0001396,2]
[331534048,1720456240444,-155.0,0.00013989,2]
[331534049,1720456240454,-263.08285858,0.00013999,2]
[331534050,1720456240464,-155.22029957,0.00013999,2]
[331534051,1720456240475,-29758.9840997,0.00014,2]
[331534052,1720456240488,-574.92905729,0.00014,2]
[331534053,1720456240509,-807102.90381776,0.00014,2]
[331534054,1720456240522,-24929.11631104,0.00014,2]
[331534055,1720456240545,-4023.30826427,0.00014,2]
[331534056,1720456240608,-670.0,0.00014,2]
[331534082,1720456243608,-16928.42600029,0.00014,2]
[331534083,1720456243619,-293.80853246,0.00014,2]
[331534084,1720456243631,-1728.53770147,0.00014,2]
[331534085,1720456243651,-560.84,0.00014,2]
[331534086,1720456243662,-378.703701,0.00014,2]
[331534087,1720456243673,-4143.31,0.00014,2]
[331534088,1720456243942,-18688.91434941,0.00014,2]
[331534089,1720456243960,-1479.78399579,0.00014,2]
[331534090,1720456243976,-1921.29205391,0.00014,2]
[331534091,1720456243990,-2039.14281348,0.00014,2]
[331534092,1720456244005,-1295.53948665,0.00014,2]
[331534093,1720456244020,-4889.69506004,0.00014,2]
[331534094,1720456244034,-6360.42128157,0.00014,2]
[331534095,1720456244054,-623.2797952,0.00014,2]
[331534096,1720456244065,-443.4506406,0.00014,2]
[331534097,1720456244076,-5604.72198332,0.00014,2]
[331534105,1720456246513,-155.0,0.00013899,2]
[331534106,1720456246523,-24589.4,0.00014,2]
[331534107,1720456246630,-3795.64476265,0.00014,2]
[331534108,1720456246764,-299.98841327,0.00014,2]
[331534109,1720456246776,-4306.24841824,0.00014,2]
[331534110,1720456246788,-393.05071,0.00014,2]
[331534111,1720456246839,-1853.9365,0.00014,2]
[331534133,1720456319477,300.0,0.00027,120]
[331534136,1720456358533,300.0,0.00025,60]
[331534138,1720456442558,589.58,0.0002302,120]
[331534150,1720456544752,27999.86131055,0.000112,2]
[331534157,1720456573190,158.59716165,0.000112,2]
[331534158,1720456592935,494.11942537,0.00023,120]
[331534161,1720456600252,1112.55773879,0.00024,120]
[331534168,1720456642763,407.16150473,0.0002509,120]
[331534171,1720456645720,152.29199847,0.00026,120]
[331534176,1720457002538,530.74745286,0.00011199,2]
[331534179,1720457043631,3120.63136838,0.00011199,2]
[331534182,1720457105832,158.59716165,0.00011199,2]
[331534184,1720457175691,20329.11976336,0.00011199,2]
[331534186,1720457194840,158.59716165,0.00011199,2]
[331534190,1720457236724,157.07,0.00010835,2]
[331534191,1720457308223,158.59716165,0.00010835,2]
[331534192,1720457323245,158.59716165,0.00010835,2]
[331534195,1720457370022,176.22964096,0.00011199,2]
[331534196,1720457390026,7574.37495729,0.00011199,2]
[331534199,1720457407975,168.56,0.00010122,2]
[331534208,1720457433110,-718.42740746,0.00011799,2]
[331534209,1720457433122,-72.57259254,0.00011799,2]
[331534210,1720457433131,-499.04681645,0.000118,2]
[331534211,1720457433143,-286.85766884,0.000118,2]
[331534212,1720457433152,-237.89260728,0.00012302,2]
[331534213,1720457433163,-384.92968945,0.00012302,2]
[331534214,1720457433174,-547.39974767,0.00012302,2]
[331534215,1720457433184,-156.06582334,0.00012314,2]
[331534216,1720457433193,-192.0,0.00012736,2]
[331534217,1720457433204,-1000.0,0.00012737,2]
[331534218,1720457433213,-168.0,0.00012768,2]
[331534220,1720457433223,-3996.57638946,0.00012769,2]
[331534222,1720457433235,-2564.46361054,0.00012769,2]
[331534224,1720457433245,-200.0,0.0001278,2]
[331534226,1720457433257,-250.0,0.00012791,2]
[331534228,1720457433268,-551.38,0.00012821,2]
[331534230,1720457433278,-157.07,0.00013099,2]
[331534232,1720457433288,-5095.25159186,0.00013128,2]
[331534234,1720457433300,-266.95294903,0.00013128,2]
[331534236,1720457433312,-801.58,0.00013128,2]
[331534239,1720457433323,-551.29288503,0.00013128,2]
[331534240,1720457433335,-2357.46065058,0.00013128,2]
[331534241,1720457433346,-193.69998713,0.00013128,2]
[331534242,1720457433356,-158.59716165,0.00013133,2]
[331534243,1720457433366,-528.27,0.00013347,2]
[331534244,1720457433376,-416.37,0.00013347,2]
[331534245,1720457433386,-7587.34824012,0.00013448,2]
[331534246,1720457433397,-28450.141312,0.00013448,2]
[331534247,1720457433407,-3723.16177161,0.00013448,2]
[331534248,1720457433419,-5510.53358563,0.00013448,2]
[331534249,1720457433430,-1324.76351156,0.00013448,2]
[331534250,1720457433441,-582.92504737,0.00013448,2]
[331534251,1720457433452,-8463.46291379,0.00013448,2]
[331534252,1720457433463,-7439.79,0.00013448,2]
[331534253,1720457433474,-3669.50244182,0.00013448,2]
[331534254,1720457433485,-4616.32396427,0.00013448,2]
[331534255,1720457433496,-24137.04721183,0.00013448,2]
[331534256,1720457433507,-155.0,0.00013472,2]
[331534257,1720457433516,-443.85598899,0.00013472,2]
[331534258,1720457433525,-202.04839628,0.00013472,2]
[331534259,1720457433534,-1556.34,0.00013497,2]
[331534260,1720457433543,-499.99,0.00013512,2]
[331534261,1720457433552,-227.24934482,0.00013516,2]
[331534262,1720457433561,-153.34,0.00013563,2]
[331534263,1720457433570,-533.01126164,0.00013574,2]
[331534264,1720457433579,-176.22964096,0.00013574,2]
[331534265,1720457433588,-155.0,0.00013574,2]
[331534266,1720457433598,-153.34,0.00013633,2]
[331534267,1720457433607,-271.15,0.00013699,2]
[331534268,1720457433616,-153.34,0.00013704,2]
[331534269,1720457433625,-385.31605884,0.00013749,2]
[331534270,1720457433635,-153.34,0.00013775,2]
[331534271,1720457433648,-4638.26515608,0.00013799,2]
[331534272,1720457433657,-153.34,0.00013845,2]
[331534273,1720457433666,-925.92592,0.0001386,2]
[331534274,1720457433676,-1421.0317,0.00013889,2]
[331534275,1720457433685,-1235.6588,0.00013889,2]
[331534276,1720457433694,-155.0,0.00013889,2]
[331534277,1720457433703,-155.0,0.00013899,4]
[331534278,1720457433711,-342.586,0.000139,2]
[331534279,1720457433722,-165.47054182,0.000139,2]
[331534280,1720457433732,-170.72724843,0.000139,2]
[331534281,1720457433741,-427.09445644,0.000139,2]
[331534282,1720457433752,-327.00590479,0.000139,2]
[331534283,1720457433761,-222.49891506,0.000139,2]
[331534284,1720457433770,-538.36765014,0.000139,2]
[331534285,1720457433778,-153.34,0.00013916,2]
[331534286,1720457433787,-2000.0,0.00013973,3]
[331534287,1720457433796,-153.34,0.00013987,2]
[331534288,1720457433806,-150.01,0.00013999,2]
[331534289,1720457433815,-5926.80256744,0.00013999,2]
[331534290,1720457433824,-417.57753369,0.00013999,2]
[331534291,1720457433833,-475.9304479,0.00013999,2]
[331534292,1720457433843,-88246.05314892,0.00014,2]
[331534293,1720457433855,-59071.25034392,0.00014,2]
[331534294,1720457433866,-1800304.28773019,0.00014,2]
[331534305,1720457437614,-729.40429343,0.00012672,2]
[331534306,1720457437673,-345.0,0.00012672,2]
[331534307,1720457437685,-429.48050066,0.00012672,2]
[331534308,1720457437787,-2594.64763549,0.00012672,2]
[331534309,1720457437800,-3546.43137242,0.00012672,2]
[331534310,1720457437810,-100.02140397,0.00013999,2]
[331534311,1720457437901,-181.72243548,0.00013999,2]
[331534312,1720457437911,-224.74473419,0.00013999,2]
[331534437,1720457439256,158.59716165,0.00011199,2]
[331534475,1720457439639,-1146.45957175,0.00013999,2]
[331534477,1720457439656,-751.980007,0.00013999,2]
[331534479,1720457439667,-490.16550857,0.00013999,2]
[331534481,1720457439676,-5223.08119006,0.00014,2]